[Event "Live Chess"]
[Site "Chess.com"]
[Date "2023.05.21"]
[Round "-"]
[White "Missedidea"]
[Black "wot-not"]
[Result "1-0"]
[WhiteElo "1818"]
[BlackElo "1543"]
[TimeControl "300"]
[EndTime "16:16:12 PDT"]
[Termination "Missedidea won on time"]

1. d4 {[%clk 0:04:58.6]} 1... Nf6 {[%clk 0:04:58.5]} 2. c4 {[%clk 0:04:56.8]}
2... c5 {[%clk 0:04:57.5]} 3. d5 {[%clk 0:04:55.3]} 3... d6 {[%clk 0:04:56.2]}
4. Nc3 {[%clk 0:04:53.7]} 4... e5 {[%clk 0:04:55.4]} 5. e4 {[%clk 0:04:50.9]}
5... Be7 {[%clk 0:04:54.7]} 6. Nf3 {[%clk 0:04:45.2]} 6... Nbd7 {[%clk
0:04:54.1]} 7. Be2 {[%clk 0:04:42.2]} 7... Nf8 {[%clk 0:04:52.9]} 8. O-O {[%clk
0:04:40.6]} 8... Ng6 {[%clk 0:04:51.7]} 9. g3 {[%clk 0:04:35.9]} 9... h5 {[%clk
0:04:49.5]} 10. h4 {[%clk 0:04:32.9]} 10... Bg4 {[%clk 0:04:39.5]} 11. Ng5
{[%clk 0:04:29.4]} 11... Bxe2 {[%clk 0:04:37.1]} 12. Qxe2 {[%clk 0:04:26.1]}
12... O-O {[%clk 0:04:33.1]} 13. Bd2 {[%clk 0:04:12.8]} 13... a6 {[%clk
0:04:31.2]} 14. a3 {[%clk 0:04:08.6]} 14... Rb8 {[%clk 0:04:27.2]} 15. b4 {[%clk
0:04:03.6]} 15... cxb4 {[%clk 0:04:22]} 16. axb4 {[%clk 0:04:01.6]} 16... Qb6
{[%clk 0:04:04.3]} 17. Rfb1 {[%clk 0:03:51.5]} 17... Ng4 {[%clk 0:03:57.3]} 18.
Na4 {[%clk 0:03:45]} 18... Qd8 {[%clk 0:03:46.3]} 19. c5 {[%clk 0:03:38.6]}
19... Bxg5 {[%clk 0:03:37.8]} 20. Bxg5 {[%clk 0:03:26]} 20... f6 {[%clk
0:03:36.7]} 21. Bd2 {[%clk 0:03:19.3]} 21... f5 {[%clk 0:03:24.3]} 22. Be1
{[%clk 0:02:59.3]} 22... f4 {[%clk 0:03:15]} 23. Nb6 {[%clk 0:02:52.4]} 23... f3
{[%clk 0:02:41.5]} 24. Qd2 {[%clk 0:02:43.6]} 24... Nxh4 {[%clk 0:02:33.6]} 25.
Nc4 {[%clk 0:02:38.7]} 25... Ng2 {[%clk 0:02:19.9]} 26. Nxd6 {[%clk 0:02:32.5]}
26... h4 {[%clk 0:02:09]} 27. Nf5 {[%clk 0:02:26]} 27... h3 {[%clk 0:01:32]} 28.
d6 {[%clk 0:02:19.6]} 28... h2+ {[%clk 0:01:14.6]} 29. Kh1 {[%clk 0:02:15.8]}
29... g6 {[%clk 0:00:54.7]} 30. Ne7+ {[%clk 0:02:13.2]} 30... Kg7 {[%clk
0:00:46.4]} 31. Ra3 {[%clk 0:01:46.1]} 31... Rh8 {[%clk 0:00:42.3]} 32. Rxf3
{[%clk 0:01:38.5]} 32... Nxe1 {[%clk 0:00:41.6]} 33. Qxe1 {[%clk 0:01:34.5]}
33... Qd7 {[%clk 0:00:29.9]} 34. Qf1 {[%clk 0:01:25.6]} 34... Rbf8 {[%clk
0:00:26.5]} 35. Rbb3 {[%clk 0:01:20.8]} 35... Qe6 {[%clk 0:00:17.8]} 36. Rbc3
{[%clk 0:01:12.4]} 36... Rxf3 {[%clk 0:00:15.6]} 37. Rxf3 {[%clk 0:01:09.5]}
37... Rf8 {[%clk 0:00:13.2]} 38. Rxf8 {[%clk 0:01:06.3]} 38... Kxf8 {[%clk
0:00:12.6]} 39. f3 {[%clk 0:01:00.5]} 39... Ne3 {[%clk 0:00:06]} 40. Qe1 {[%clk
0:00:52.8]} 40... Qa2 {[%clk 0:00:04.8]} 41. Nxg6+ {[%clk 0:00:46.7]} 41... Kg7
{[%clk 0:00:03.2]} 42. Nh4 {[%clk 0:00:45.3]} 42... Ng2 {[%clk 0:00:01.7]} 43.
Nxg2 {[%clk 0:00:42.7]} 1-0

[Event "Live Chess"]
[Site "Chess.com"]
[Date "2023.05.21"]
[Round "-"]
[White "Olisingapore"]
[Black "Ed_Knox"]
[Result "0-1"]
[WhiteElo "1822"]
[BlackElo "1465"]
[TimeControl "300"]
[EndTime "16:16:15 PDT"]
[Termination "Ed_Knox won by resignation"]

1. d4 {[%clk 0:04:57.8]} 1... g6 {[%clk 0:04:58.4]} 2. c4 {[%clk 0:04:57.4]}
2... Bg7 {[%clk 0:04:57.8]} 3. g3 {[%clk 0:04:57]} 3... d6 {[%clk 0:04:57.4]} 4.
Bg2 {[%clk 0:04:56.6]} 4... Nd7 {[%clk 0:04:56.3]} 5. Nc3 {[%clk 0:04:56.3]}
5... e5 {[%clk 0:04:55.3]} 6. Nf3 {[%clk 0:04:56.2]} 6... exd4 {[%clk
0:04:20.9]} 7. Nxd4 {[%clk 0:04:56.1]} 7... Ngf6 {[%clk 0:04:17]} 8. O-O {[%clk
0:04:50]} 8... O-O {[%clk 0:04:15.5]} 9. e4 {[%clk 0:04:40.4]} 9... Ne5 {[%clk
0:04:02.4]} 10. b3 {[%clk 0:04:36.6]} 10... Be6 {[%clk 0:03:55.1]} 11. Re1
{[%clk 0:04:35.6]} 11... Qd7 {[%clk 0:03:49.3]} 12. Bb2 {[%clk 0:04:34.5]} 12...
Bh3 {[%clk 0:03:41.7]} 13. Qe2 {[%clk 0:04:19.9]} 13... Bxg2 {[%clk 0:03:39.5]}
14. Kxg2 {[%clk 0:04:19.8]} 14... Rfe8 {[%clk 0:03:21.5]} 15. h3 {[%clk
0:04:15]} 15... Nc6 {[%clk 0:03:14.4]} 16. Nxc6 {[%clk 0:04:00.1]} 16... Qxc6
{[%clk 0:03:12.8]} 17. f3 {[%clk 0:03:56.1]} 17... Re7 {[%clk 0:03:02]} 18. Rad1
{[%clk 0:03:41.3]} 18... Rae8 {[%clk 0:02:59.7]} 19. Rd4 {[%clk 0:03:31.2]}
19... Nd7 {[%clk 0:02:38.9]} 20. Rd3 {[%clk 0:03:28.5]} 20... Ne5 {[%clk
0:02:32.7]} 21. Rd5 {[%clk 0:03:17]} 21... Nd7 {[%clk 0:02:30.5]} 22. Bc1 {[%clk
0:03:09]} 22... Bxc3 {[%clk 0:02:22.4]} 23. Bg5 {[%clk 0:02:48.9]} 23... Bf6
{[%clk 0:02:15.8]} 24. Bxf6 {[%clk 0:02:43.8]} 24... Nxf6 {[%clk 0:02:14.3]} 25.
Qd2 {[%clk 0:02:40.5]} 25... Nxd5 {[%clk 0:02:11.5]} 26. cxd5 {[%clk 0:02:35.1]}
26... Qd7 {[%clk 0:01:59.8]} 27. Qe3 {[%clk 0:02:26.8]} 27... f5 {[%clk
0:01:55.7]} 28. Qxa7 {[%clk 0:02:23.5]} 28... fxe4 {[%clk 0:01:48.9]} 29. fxe4
{[%clk 0:02:19.9]} 29... Rxe4 {[%clk 0:01:38.2]} 30. Rxe4 {[%clk 0:02:13]} 30...
Rxe4 {[%clk 0:01:34.2]} 31. Qxb7 {[%clk 0:02:09]} 31... Qf7 {[%clk 0:01:14.1]}
32. Qc8+ {[%clk 0:02:04.7]} 32... Kg7 {[%clk 0:01:13.1]} 33. Qg4 {[%clk
0:01:58.4]} 33... Qxd5 {[%clk 0:01:06.3]} 34. Qd7+ {[%clk 0:01:50.3]} 34... Qf7
{[%clk 0:01:04.8]} 35. Qb5 {[%clk 0:01:42.2]} 35... Re5 {[%clk 0:01:01.5]} 36.
Qd3 {[%clk 0:01:36.5]} 36... Qd5+ {[%clk 0:01:00.3]} 37. Qxd5 {[%clk 0:01:35.4]}
37... Rxd5 {[%clk 0:00:59.7]} 38. Kf3 {[%clk 0:01:35.1]} 38... Rd2 {[%clk
0:00:58.1]} 39. a4 {[%clk 0:01:33.3]} 39... Rb2 {[%clk 0:00:57]} 0-1

[Event "Live Chess"]
[Site "Chess.com"]
[Date "2023.05.21"]
[Round "-"]
[White "sanjesh_ananda"]
[Black "JohanKjeldahl"]
[Result "0-1"]
[WhiteElo "1294"]
[BlackElo "1874"]
[TimeControl "300"]
[EndTime "16:16:15 PDT"]
[Termination "JohanKjeldahl won by resignation"]

1. e4 {[%clk 0:04:57.7]} 1... c5 {[%clk 0:04:58.3]} 2. Bc4 {[%clk 0:04:55.1]}
2... e6 {[%clk 0:04:57]} 3. Nc3 {[%clk 0:04:53.7]} 3... a6 {[%clk 0:04:55.2]} 4.
a4 {[%clk 0:04:49.3]} 4... Nc6 {[%clk 0:04:53.4]} 5. Nf3 {[%clk 0:04:36.5]} 5...
Qc7 {[%clk 0:04:51.8]} 6. O-O {[%clk 0:04:20.6]} 6... Nf6 {[%clk 0:04:50]} 7. d4
{[%clk 0:04:16]} 7... cxd4 {[%clk 0:04:48.3]} 8. Nxd4 {[%clk 0:04:14.7]} 8...
Be7 {[%clk 0:04:42.9]} 9. f4 {[%clk 0:03:58]} 9... Nxd4 {[%clk 0:04:40.7]} 10.
Qxd4 {[%clk 0:03:55.6]} 10... Bc5 {[%clk 0:04:37.1]} 11. Be3 {[%clk 0:02:22.2]}
11... Bxd4 {[%clk 0:04:34.4]} 0-1

[Event "Live Chess"]
[Site "Chess.com"]
[Date "2023.05.21"]
[Round "-"]
[White "manthanit"]
[Black "WilliamofOrange16th"]
[Result "0-1"]
[WhiteElo "1054"]
[BlackElo "1845"]
[TimeControl "300"]
[EndTime "16:16:16 PDT"]
[Termination "WilliamofOrange16th won by checkmate"]

1. e4 {[%clk 0:04:59.7]} 1... d6 {[%clk 0:04:59]} 2. Nf3 {[%clk 0:04:58.5]} 2...
Nf6 {[%clk 0:04:58.1]} 3. Nc3 {[%clk 0:04:55.4]} 3... e5 {[%clk 0:04:52]} 4. d4
{[%clk 0:04:54.9]} 4... Nbd7 {[%clk 0:04:49.4]} 5. dxe5 {[%clk 0:04:54.1]} 5...
dxe5 {[%clk 0:04:49.3]} 6. Bg5 {[%clk 0:04:50.6]} 6... c6 {[%clk 0:04:47.2]} 7.
Bxf6 {[%clk 0:04:48.2]} 7... Qxf6 {[%clk 0:04:47.1]} 8. Bc4 {[%clk 0:04:44.9]}
8... b5 {[%clk 0:04:30.8]} 9. Bb3 {[%clk 0:04:43.2]} 9... Nc5 {[%clk 0:04:22.2]}
10. a4 {[%clk 0:04:33.8]} 10... b4 {[%clk 0:04:13.8]} 11. Ne2 {[%clk 0:04:31]}
11... Nxb3 {[%clk 0:04:07.4]} 12. cxb3 {[%clk 0:04:30.1]} 12... Bg4 {[%clk
0:03:58.8]} 13. Ng3 {[%clk 0:04:27.1]} 13... Rd8 {[%clk 0:03:45.3]} 14. Qe2
{[%clk 0:04:24.1]} 14... Be7 {[%clk 0:03:36.5]} 15. O-O {[%clk 0:04:22.8]} 15...
O-O {[%clk 0:03:35.4]} 16. h3 {[%clk 0:04:19.5]} 16... Be6 {[%clk 0:03:34.1]}
17. Qe3 {[%clk 0:04:12.6]} 17... c5 {[%clk 0:03:29]} 18. Rfd1 {[%clk 0:04:01.5]}
18... g6 {[%clk 0:03:26.7]} 19. Rd3 {[%clk 0:03:55.2]} 19... Rxd3 {[%clk
0:03:24.2]} 20. Qxd3 {[%clk 0:03:53.2]} 20... Rd8 {[%clk 0:03:22]} 21. Qe2
{[%clk 0:03:49.1]} 21... Bxb3 {[%clk 0:03:19.8]} 22. a5 {[%clk 0:03:46.1]} 22...
c4 {[%clk 0:03:13.5]} 23. Nd2 {[%clk 0:03:41.2]} 23... Rd3 {[%clk 0:02:45.8]}
24. Nxb3 {[%clk 0:03:35.1]} 24... Rxb3 {[%clk 0:02:45.7]} 25. Rb1 {[%clk
0:03:28.5]} 25... c3 {[%clk 0:02:43.1]} 26. Qc4 {[%clk 0:03:18.4]} 26... Rxb2
{[%clk 0:02:42.1]} 27. Rxb2 {[%clk 0:03:15.2]} 27... cxb2 {[%clk 0:02:41.3]} 28.
Qb3 {[%clk 0:03:09.2]} 28... Qd6 {[%clk 0:02:01.9]} 29. Qxb2 {[%clk 0:03:03.7]}
29... Qd1+ {[%clk 0:01:59.6]} 30. Kh2 {[%clk 0:03:01]} 30... Bd6 {[%clk
0:01:59.1]} 31. f3 {[%clk 0:02:04.5]} 31... b3 {[%clk 0:01:52.5]} 32. Qf2 {[%clk
0:02:02.1]} 32... Qd4 {[%clk 0:01:47.6]} 33. Qe2 {[%clk 0:01:35.5]} 33... b2
{[%clk 0:01:45.3]} 34. Qb5 {[%clk 0:01:33.7]} 34... Bc5 {[%clk 0:01:40.8]} 35.
Ne2 {[%clk 0:01:11.9]} 35... Qb4 {[%clk 0:01:23.9]} 36. Qe8+ {[%clk 0:01:05.1]}
36... Bf8 {[%clk 0:01:23]} 37. Qxe5 {[%clk 0:01:03.3]} 37... b1=Q {[%clk
0:01:22]} 38. Qf6 {[%clk 0:00:35.7]} 38... Qb8+ {[%clk 0:01:16.7]} 39. f4 {[%clk
0:00:32.3]} 39... Qxe4 {[%clk 0:01:14.1]} 40. Ng3 {[%clk 0:00:20.2]} 40... Qexf4
{[%clk 0:01:12.3]} 41. Qc3 {[%clk 0:00:15.9]} 41... Bd6 {[%clk 0:01:07.7]} 42.
a6 {[%clk 0:00:13]} 42... Qxg3+ {[%clk 0:01:06.9]} 43. Qxg3 {[%clk 0:00:12.4]}
43... Bxg3+ {[%clk 0:01:06.2]} 44. Kh1 {[%clk 0:00:11.2]} 44... Qb1# {[%clk
0:01:06.1]} 0-1

[Event "Live Chess"]
[Site "Chess.com"]
[Date "2023.05.21"]
[Round "-"]
[White "LodeshChess"]
[Black "jimwad"]
[Result "1-0"]
[WhiteElo "1147"]
[BlackElo "1209"]
[TimeControl "300"]
[EndTime "16:16:23 PDT"]
[Termination "LodeshChess won by resignation"]

1. e4 {[%clk 0:04:54.6]} 1... e5 {[%clk 0:04:58.6]} 2. Nf3 {[%clk 0:04:53.7]}
2... Nc6 {[%clk 0:04:57.5]} 3. c3 {[%clk 0:04:52.8]} 3... f6 {[%clk 0:04:56.2]}
4. d4 {[%clk 0:04:48.7]} 4... exd4 {[%clk 0:04:54.7]} 5. cxd4 {[%clk 0:04:47.9]}
5... Bb4+ {[%clk 0:04:49.6]} 6. Nc3 {[%clk 0:04:46.4]} 6... Nge7 {[%clk
0:04:47]} 7. a3 {[%clk 0:04:40.9]} 7... Ba5 {[%clk 0:04:44.3]} 8. b4 {[%clk
0:04:40.1]} 8... Bb6 {[%clk 0:04:43.4]} 9. Bb5 {[%clk 0:04:37.6]} 9... O-O
{[%clk 0:04:41]} 10. e5 {[%clk 0:04:18]} 10... fxe5 {[%clk 0:04:39]} 11. Bxc6
{[%clk 0:04:01]} 11... Nxc6 {[%clk 0:04:36.3]} 12. Qb3+ {[%clk 0:03:58.7]} 12...
Kh8 {[%clk 0:04:34.7]} 13. Ng5 {[%clk 0:03:54.7]} 13... Nxd4 {[%clk 0:04:32.2]}
14. Qc4 {[%clk 0:03:46.4]} 14... Nc2+ {[%clk 0:04:28]} 15. Kd1 {[%clk
0:03:44.2]} 15... d5 {[%clk 0:04:08.9]} 16. Qh4 {[%clk 0:03:36.7]} 16... h6
{[%clk 0:04:05.6]} 17. Nf7+ {[%clk 0:03:33.1]} 17... Kg8 {[%clk 0:03:59.7]} 18.
Nxd8 {[%clk 0:03:31.5]} 18... Nxa1 {[%clk 0:03:56.7]} 19. Bxh6 {[%clk
0:03:21.8]} 19... Bxf2 {[%clk 0:03:48.7]} 20. Qg5 {[%clk 0:03:14.3]} 1-0

[Event "Live Chess"]
[Site "Chess.com"]
[Date "2023.05.21"]
[Round "-"]
[White "EdenHazard8"]
[Black "NAZRIZ1977"]
[Result "0-1"]
[WhiteElo "2013"]
[BlackElo "2062"]
[TimeControl "300"]
[EndTime "16:16:33 PDT"]
[Termination "NAZRIZ1977 won by resignation"]

1. e4 {[%clk 0:04:59.1]} 1... c5 {[%clk 0:04:57.3]} 2. Nc3 {[%clk 0:04:58.1]}
2... Nc6 {[%clk 0:04:55.7]} 3. f4 {[%clk 0:04:58]} 3... g6 {[%clk 0:04:54.2]} 4.
Nf3 {[%clk 0:04:57.9]} 4... Bg7 {[%clk 0:04:53.1]} 5. Bb5 {[%clk 0:04:57.1]}
5... Nd4 {[%clk 0:04:52]} 6. O-O {[%clk 0:04:55.5]} 6... e6 {[%clk 0:04:51.5]}
7. d3 {[%clk 0:04:54.3]} 7... Ne7 {[%clk 0:04:50]} 8. Ba4 {[%clk 0:04:50.2]}
8... O-O {[%clk 0:04:48.5]} 9. Qe1 {[%clk 0:04:49]} 9... d5 {[%clk 0:04:43.6]}
10. Qh4 {[%clk 0:04:47.7]} 10... Nec6 {[%clk 0:04:32]} 11. Qh3 {[%clk
0:04:43.3]} 11... e5 {[%clk 0:04:21.2]} 12. f5 {[%clk 0:04:41.7]} 12... Nxf3+
{[%clk 0:04:17.4]} 13. Rxf3 {[%clk 0:04:40.2]} 13... Nd4 {[%clk 0:04:16.1]} 14.
Rg3 {[%clk 0:04:38.4]} 14... b5 {[%clk 0:04:10.2]} 15. Nxb5 {[%clk 0:04:36.5]}
15... Nxb5 {[%clk 0:04:08.2]} 16. Bxb5 {[%clk 0:04:36.4]} 16... dxe4 {[%clk
0:04:07.5]} 17. dxe4 {[%clk 0:04:29.2]} 17... Qd1+ {[%clk 0:04:04.2]} 18. Bf1
{[%clk 0:04:28.7]} 18... Ba6 {[%clk 0:03:57.1]} 19. Rf3 {[%clk 0:04:26.9]} 19...
Rad8 {[%clk 0:03:46.2]} 20. f6 {[%clk 0:04:24.6]} 20... Bh8 {[%clk 0:03:41.8]}
21. b4 {[%clk 0:03:57.9]} 21... Qd4+ {[%clk 0:03:34]} 22. Kh1 {[%clk 0:03:54.8]}
22... Qxa1 {[%clk 0:03:32.8]} 23. Ba3 {[%clk 0:03:52.9]} 23... Bxf1 {[%clk
0:03:26.5]} 0-1

[Event "Live Chess"]
[Site "Chess.com"]
[Date "2023.05.21"]
[Round "-"]
[White "mattihelenius2"]
[Black "CeladonFish"]
[Result "0-1"]
[WhiteElo "489"]
[BlackElo "1127"]
[TimeControl "300"]
[EndTime "16:16:50 PDT"]
[Termination "CeladonFish won by checkmate"]

1. d4 {[%clk 0:04:57.8]} 1... Nf6 {[%clk 0:04:58.5]} 2. c4 {[%clk 0:04:56.7]}
2... g6 {[%clk 0:04:57.2]} 3. Nf3 {[%clk 0:04:54.9]} 3... Bg7 {[%clk 0:04:55.7]}
4. e3 {[%clk 0:04:53.6]} 4... O-O {[%clk 0:04:53]} 5. Nbd2 {[%clk 0:04:50.7]}
5... d5 {[%clk 0:04:51.9]} 6. c5 {[%clk 0:04:49.4]} 6... b6 {[%clk 0:04:38.1]}
7. c6 {[%clk 0:04:46.5]} 7... Qd6 {[%clk 0:04:33.1]} 8. Bb5 {[%clk 0:04:44.4]}
8... a6 {[%clk 0:04:30.8]} 9. Ba4 {[%clk 0:04:40.8]} 9... b5 {[%clk 0:04:29.9]}
10. Ne5 {[%clk 0:04:23.5]} 10... Nxc6 {[%clk 0:04:26.6]} 11. Nxc6 {[%clk
0:04:21.5]} 11... Qxc6 {[%clk 0:04:25.5]} 12. Bb3 {[%clk 0:04:20.7]} 12... a5
{[%clk 0:04:18.4]} 13. O-O {[%clk 0:04:14.8]} 13... a4 {[%clk 0:04:17.3]} 14.
Bc2 {[%clk 0:04:08.7]} 14... Qd6 {[%clk 0:04:05.5]} 15. Nf3 {[%clk 0:04:07.5]}
15... Bg4 {[%clk 0:04:02.2]} 16. h3 {[%clk 0:04:00.8]} 16... Bxf3 {[%clk
0:04:00.9]} 17. Qxf3 {[%clk 0:03:58.2]} 17... c5 {[%clk 0:03:53.1]} 18. dxc5
{[%clk 0:03:55.8]} 18... Qxc5 {[%clk 0:03:52.1]} 19. Bf5 {[%clk 0:03:50.5]}
19... gxf5 {[%clk 0:03:42.3]} 20. b3 {[%clk 0:03:42.3]} 20... axb3 {[%clk
0:03:38.5]} 21. a3 {[%clk 0:03:39.4]} 21... Ne4 {[%clk 0:03:31.7]} 22. Bb2
{[%clk 0:03:33.2]} 22... Bxb2 {[%clk 0:03:29.5]} 23. Rab1 {[%clk 0:03:25.9]}
23... Bxa3 {[%clk 0:03:21.9]} 24. Qxf5 {[%clk 0:03:24.1]} 24... Nd2 {[%clk
0:03:15.7]} 25. Qg5+ {[%clk 0:02:53.8]} 25... Kh8 {[%clk 0:03:13.6]} 26. Rbc1
{[%clk 0:02:48]} 26... Bxc1 {[%clk 0:03:09.9]} 27. Qe5+ {[%clk 0:02:25.3]} 27...
f6 {[%clk 0:03:05.8]} 28. Qe6 {[%clk 0:01:54.9]} 28... Nxf1 {[%clk 0:03:02.7]}
29. Kxf1 {[%clk 0:01:53.2]} 29... Qc4+ {[%clk 0:03:00.2]} 30. Kg1 {[%clk
0:01:48.8]} 30... Bb2 {[%clk 0:02:57.4]} 31. Qxe7 {[%clk 0:01:45.5]} 31... Rae8
{[%clk 0:02:49.6]} 32. Qd6 {[%clk 0:01:24.7]} 32... Be5 {[%clk 0:02:44.7]} 33.
Qd7 {[%clk 0:00:55.2]} 33... Qc1# {[%clk 0:02:42.9]} 0-1

[Event "Live Chess"]
[Site "Chess.com"]
[Date "2023.05.21"]
[Round "-"]
[White "Daniel_Gliddon_FA"]
[Black "AlanPaling"]
[Result "0-1"]
[WhiteElo "1204"]
[BlackElo "1330"]
[TimeControl "300"]
[EndTime "16:16:58 PDT"]
[Termination "AlanPaling won by resignation"]

1. e4 {[%clk 0:04:54.8]} 1... Nf6 {[%clk 0:04:58.6]} 2. e5 {[%clk 0:04:52.3]}
2... Nd5 {[%clk 0:04:57.8]} 3. c4 {[%clk 0:04:50.9]} 3... Nb6 {[%clk 0:04:56.7]}
4. d4 {[%clk 0:04:49.4]} 4... d6 {[%clk 0:04:55.8]} 5. Nf3 {[%clk 0:04:40.4]}
5... Bg4 {[%clk 0:04:53.7]} 6. Be2 {[%clk 0:04:35.3]} 6... e6 {[%clk 0:04:51.8]}
7. O-O {[%clk 0:04:25.5]} 7... Be7 {[%clk 0:04:50.2]} 8. Be3 {[%clk 0:04:22.3]}
8... O-O {[%clk 0:04:48.1]} 9. Nbd2 {[%clk 0:04:15.1]} 9... dxe5 {[%clk
0:04:46.2]} 10. Nxe5 {[%clk 0:04:09.8]} 10... Bxe2 {[%clk 0:04:44.3]} 11. Qxe2
{[%clk 0:04:06.8]} 11... N8d7 {[%clk 0:04:41.8]} 12. f4 {[%clk 0:03:58.7]} 12...
c5 {[%clk 0:04:38.3]} 13. Nxd7 {[%clk 0:03:54.2]} 13... Nxd7 {[%clk 0:04:36.1]}
14. f5 {[%clk 0:03:50.1]} 14... exf5 {[%clk 0:04:27.5]} 15. Rxf5 {[%clk
0:03:45.9]} 15... cxd4 {[%clk 0:04:25]} 16. Bxd4 {[%clk 0:03:44.6]} 16... Nf6
{[%clk 0:04:16.7]} 17. Rg5 {[%clk 0:03:39.4]} 17... h6 {[%clk 0:04:11.4]} 18.
Rg3 {[%clk 0:03:36.3]} 18... Kh8 {[%clk 0:04:04.9]} 19. Bxf6 {[%clk 0:03:29.5]}
19... Bxf6 {[%clk 0:04:02]} 20. Rh3 {[%clk 0:03:23.6]} 20... Qd4+ {[%clk
0:03:57.2]} 21. Qe3 {[%clk 0:03:16.1]} 21... Qxb2 {[%clk 0:03:49.1]} 22. Rf1
{[%clk 0:03:08.5]} 22... Bd4 {[%clk 0:03:46.9]} 0-1

[Event "Live Chess"]
[Site "Chess.com"]
[Date "2023.05.21"]
[Round "-"]
[White "Brooms1989"]
[Black "Jo1ts"]
[Result "1-0"]
[WhiteElo "1090"]
[BlackElo "776"]
[TimeControl "300"]
[EndTime "16:16:59 PDT"]
[Termination "Brooms1989 won by checkmate"]

1. e4 {[%clk 0:04:56.7]} 1... d5 {[%clk 0:04:58.1]} 2. exd5 {[%clk 0:04:54.6]}
2... Qxd5 {[%clk 0:04:57.5]} 3. Nc3 {[%clk 0:04:53.4]} 3... Qd8 {[%clk
0:04:54.7]} 4. d4 {[%clk 0:04:52.2]} 4... Nf6 {[%clk 0:04:51]} 5. Nf3 {[%clk
0:04:51.2]} 5... Bg4 {[%clk 0:04:45.8]} 6. Be2 {[%clk 0:04:48.8]} 6... e6 {[%clk
0:04:40.9]} 7. h3 {[%clk 0:04:48]} 7... Bh5 {[%clk 0:04:38.8]} 8. O-O {[%clk
0:04:40.1]} 8... Nc6 {[%clk 0:04:34.3]} 9. Be3 {[%clk 0:04:37.5]} 9... Bd6
{[%clk 0:04:29.3]} 10. Bg5 {[%clk 0:04:31.9]} 10... h6 {[%clk 0:04:25]} 11. Bxf6
{[%clk 0:04:25.3]} 11... Qxf6 {[%clk 0:04:24.9]} 12. Ne4 {[%clk 0:04:19]} 12...
Qf4 {[%clk 0:04:21.9]} 13. Nxd6+ {[%clk 0:04:13.7]} 13... Qxd6 {[%clk
0:04:19.9]} 14. c3 {[%clk 0:04:09.5]} 14... O-O {[%clk 0:04:13.8]} 15. Qd3
{[%clk 0:03:54.7]} 15... Bxf3 {[%clk 0:04:04.3]} 16. Bxf3 {[%clk 0:03:51.7]}
16... e5 {[%clk 0:04:03.7]} 17. Bd1 {[%clk 0:03:48.6]} 17... exd4 {[%clk
0:03:59.8]} 18. Bc2 {[%clk 0:03:47.7]} 18... dxc3 {[%clk 0:03:55.5]} 19. Qh7#
{[%clk 0:03:45.9]} 1-0

[Event "Live Chess"]
[Site "Chess.com"]
[Date "2023.05.21"]
[Round "-"]
[White "gmnorfolk"]
[Black "Conradical12"]
[Result "1-0"]
[WhiteElo "2112"]
[BlackElo "1608"]
[TimeControl "300"]
[EndTime "16:17:02 PDT"]
[Termination "gmnorfolk won by resignation"]

1. d4 {[%clk 0:04:57.9]} 1... d5 {[%clk 0:04:58.3]} 2. c4 {[%clk 0:04:56.8]}
2... Nf6 {[%clk 0:04:57.6]} 3. cxd5 {[%clk 0:04:53.7]} 3... Nxd5 {[%clk
0:04:56.5]} 4. Nf3 {[%clk 0:04:53.2]} 4... Nc6 {[%clk 0:04:54.8]} 5. e4 {[%clk
0:04:50.3]} 5... Nf6 {[%clk 0:04:52.8]} 6. Nc3 {[%clk 0:04:48]} 6... e6 {[%clk
0:04:48.8]} 7. e5 {[%clk 0:04:32.2]} 7... Nd5 {[%clk 0:04:46.4]} 8. Bd3 {[%clk
0:04:31.3]} 8... Bb4 {[%clk 0:04:44.3]} 9. Bd2 {[%clk 0:04:29.6]} 9... O-O
{[%clk 0:04:42.5]} 10. O-O {[%clk 0:04:23]} 10... f6 {[%clk 0:04:41.9]} 11. exf6
{[%clk 0:04:18.5]} 11... Nxf6 {[%clk 0:04:41.4]} 12. a3 {[%clk 0:04:15.5]} 12...
Nxd4 {[%clk 0:04:37.5]} 13. Nxd4 {[%clk 0:04:12.1]} 13... Qxd4 {[%clk
0:04:34.3]} 14. Be3 {[%clk 0:04:11.4]} 14... Qd7 {[%clk 0:04:29.8]} 15. axb4
{[%clk 0:04:10]} 15... Rd8 {[%clk 0:04:29.7]} 16. Qc2 {[%clk 0:04:05.8]} 16...
Qxd3 {[%clk 0:04:28]} 17. Qxd3 {[%clk 0:04:04.4]} 17... Rxd3 {[%clk 0:04:25.8]}
18. Rxa7 {[%clk 0:04:04.3]} 18... Rxe3 {[%clk 0:04:22.6]} 19. Rxa8 {[%clk
0:04:01.7]} 19... Rxc3 {[%clk 0:04:18.8]} 20. Rxc8+ {[%clk 0:04:00.8]} 20... Kf7
{[%clk 0:04:16.5]} 21. bxc3 {[%clk 0:04:00.1]} 1-0